[Event "Early-Titled-Tuesday-Blitz-April-23-2024"]
[Site "Chess.com"]
[Date "2024.04.23"]
[Round "5"]
[White "subham777"]
[Black "kekic76"]
[Result "0-1"]
[WhiteElo "2535"]
[BlackElo "2362"]
[TimeControl "180+1"]
[EndTime "8:58:53 PDT"]
[Termination "kekic76 won by checkmate"]

1. e4 {[%clk 0:03:00.9]} 1... c6 {[%clk 0:02:58.4]} 2. c4 {[%clk 0:02:46.3]}
2... d5 {[%clk 0:02:57.6]} 3. cxd5 {[%clk 0:02:47.2]} 3... cxd5 {[%clk
0:02:57.9]} 4. exd5 {[%clk 0:02:45.7]} 4... Nf6 {[%clk 0:02:57.3]} 5. Nc3 {[%clk
0:02:43.7]} 5... Nxd5 {[%clk 0:02:55.4]} 6. Nf3 {[%clk 0:02:20.2]} 6... Nc6
{[%clk 0:02:50.8]} 7. Bc4 {[%clk 0:02:15.2]} 7... Nxc3 {[%clk 0:02:45.4]} 8.
bxc3 {[%clk 0:02:12.7]} 8... e6 {[%clk 0:02:42.5]} 9. d4 {[%clk 0:02:01.5]} 9...
Be7 {[%clk 0:02:42.4]} 10. O-O {[%clk 0:02:00.8]} 10... O-O {[%clk 0:02:42]} 11.
Re1 {[%clk 0:02:01.1]} 11... b6 {[%clk 0:02:39.4]} 12. Bd3 {[%clk 0:02:01.1]}
12... Bb7 {[%clk 0:02:35.5]} 13. Bf4 {[%clk 0:02:00.8]} 13... h6 {[%clk
0:02:29.2]} 14. Qe2 {[%clk 0:01:53.6]} 14... Bd6 {[%clk 0:02:15.5]} 15. Be3
{[%clk 0:01:50.6]} 15... Ne7 {[%clk 0:02:09]} 16. Nd2 {[%clk 0:01:46.3]} 16...
Nd5 {[%clk 0:02:06.8]} 17. Ne4 {[%clk 0:01:38.3]} 17... Nxe3 {[%clk 0:01:41.8]}
18. Qxe3 {[%clk 0:01:34.5]} 18... Bc7 {[%clk 0:01:34]} 19. Rad1 {[%clk
0:01:21.8]} 19... Qh4 {[%clk 0:01:26.2]} 20. Ng3 {[%clk 0:01:14.1]} 20... Qg4
{[%clk 0:00:47.9]} 21. Be2 {[%clk 0:01:09.6]} 21... Qg6 {[%clk 0:00:46.9]} 22.
Bf3 {[%clk 0:01:06.3]} 22... Bxf3 {[%clk 0:00:44.2]} 23. Qxf3 {[%clk 0:01:07.2]}
23... Bxg3 {[%clk 0:00:41.7]} 24. hxg3 {[%clk 0:01:04.6]} 24... Rac8 {[%clk
0:00:42.1]} 25. Re4 {[%clk 0:01:00.3]} 25... Rxc3 {[%clk 0:00:34.6]} 26. Qe2
{[%clk 0:00:55]} 26... Rfc8 {[%clk 0:00:30.1]} 27. Rg4 {[%clk 0:00:45.1]} 27...
Qc2 {[%clk 0:00:29.8]} 28. Rd2 {[%clk 0:00:41.5]} 28... Qb1+ {[%clk 0:00:25.8]}
29. Rd1 {[%clk 0:00:19.3]} 29... Rc1 {[%clk 0:00:26.1]} 30. Rxg7+ {[%clk
0:00:11.1]} 30... Kxg7 {[%clk 0:00:25.8]} 31. Qe5+ {[%clk 0:00:11.5]} 31... Kg8
{[%clk 0:00:20.4]} 32. Kh2 {[%clk 0:00:09.4]} 32... Rxd1 {[%clk 0:00:18.8]} 33.
g4 {[%clk 0:00:09.7]} 33... Rh1+ {[%clk 0:00:17.7]} 34. Kg3 {[%clk 0:00:09.7]}
34... Qd3+ {[%clk 0:00:17.6]} 35. f3 {[%clk 0:00:09.8]} 35... Qf1 {[%clk
0:00:13.9]} 36. Qd6 {[%clk 0:00:06.5]} 36... Qe1+ {[%clk 0:00:13]} 37. Kf4
{[%clk 0:00:06.4]} 37... Qd2+ {[%clk 0:00:11.2]} 38. Kg3 {[%clk 0:00:06.8]}
38... Qe1+ {[%clk 0:00:10.7]} 39. Kf4 {[%clk 0:00:07]} 39... Qf2 {[%clk
0:00:09.6]} 40. Qd7 {[%clk 0:00:06.6]} 40... Rf8 {[%clk 0:00:09.1]} 41. Qd6
{[%clk 0:00:06.4]} 41... Qxg2 {[%clk 0:00:07.9]} 42. Qe7 {[%clk 0:00:05.8]}
42... Qh2+ {[%clk 0:00:07.4]} 43. Ke3 {[%clk 0:00:04.7]} 43... Re1+ {[%clk
0:00:07.7]} 44. Kd3 {[%clk 0:00:04.3]} 44... Qe2+ {[%clk 0:00:07.6]} 45. Kc3
{[%clk 0:00:04.1]} 45... Rc8+ {[%clk 0:00:07.7]} 46. Kb4 {[%clk 0:00:04.2]}
46... Qb2+ {[%clk 0:00:07.2]} 47. Ka4 {[%clk 0:00:03.9]} 47... Qxa2+ {[%clk
0:00:06.4]} 48. Qa3 {[%clk 0:00:01.9]} 48... Rc4+ {[%clk 0:00:04.1]} 49. Kb5
{[%clk 0:00:01.3]} 49... Qxa3 {[%clk 0:00:03.8]} 50. d5 {[%clk 0:00:02.2]} 50...
Qc5+ {[%clk 0:00:03.7]} 51. Ka6 {[%clk 0:00:02.4]} 51... Qa5+ {[%clk 0:00:04.1]}
52. Kb7 {[%clk 0:00:03.2]} 52... Rc7+ {[%clk 0:00:04.3]} 53. Kxc7 {[%clk
0:00:03.3]} 53... Qxd5 {[%clk 0:00:05.2]} 54. f4 {[%clk 0:00:02.9]} 54... Rc1+
{[%clk 0:00:06.1]} 55. Kb8 {[%clk 0:00:03.1]} 55... Qd8+ {[%clk 0:00:05.9]} 56.
Kb7 {[%clk 0:00:04]} 56... Qd7+ {[%clk 0:00:06.1]} 57. Ka6 {[%clk 0:00:04.9]}
57... Qa4+ {[%clk 0:00:05.9]} 58. Kb7 {[%clk 0:00:04.6]} 58... b5 {[%clk
0:00:06.8]} 59. g5 {[%clk 0:00:04.6]} 59... b4 {[%clk 0:00:07.1]} 60. f5 {[%clk
0:00:04]} 60... Qb5+ {[%clk 0:00:07.5]} 61. Ka8 {[%clk 0:00:03.1]} 61... Rc8+
{[%clk 0:00:08]} 62. Kxa7 {[%clk 0:00:03.1]} 62... Qa5+ {[%clk 0:00:06.8]} 63.
Kb7 {[%clk 0:00:03.2]} 63... Rc7+ {[%clk 0:00:07.2]} 64. Kb8 {[%clk 0:00:03.7]}
64... Qa7# {[%clk 0:00:07.3]} 0-1

[Event "Early-Titled-Tuesday-Blitz-April-23-2024"]
[Site "Chess.com"]
[Date "2024.04.23"]
[Round "5"]
[White "MFatigue"]
[Black "LaPiToB"]
[Result "1-0"]
[WhiteElo "2557"]
[BlackElo "2294"]
[TimeControl "180+1"]
[EndTime "8:58:58 PDT"]
[Termination "MFatigue won by resignation"]

1. e4 {[%clk 0:02:59.9]} 1... c6 {[%clk 0:02:58.5]} 2. Bc4 {[%clk 0:02:59]} 2...
d5 {[%clk 0:02:58.1]} 3. Bb3 {[%clk 0:02:59.6]} 3... dxe4 {[%clk 0:02:56.5]} 4.
Qh5 {[%clk 0:03:00]} 4... e6 {[%clk 0:02:49.7]} 5. Nc3 {[%clk 0:03:00.3]} 5...
Nf6 {[%clk 0:02:48.6]} 6. Qh4 {[%clk 0:03:00.9]} 6... Be7 {[%clk 0:02:36]} 7.
Nxe4 {[%clk 0:03:01.1]} 7... Nxe4 {[%clk 0:02:35.1]} 8. Qxe4 {[%clk 0:03:02]}
8... Nd7 {[%clk 0:02:34.4]} 9. d4 {[%clk 0:03:02.6]} 9... Nf6 {[%clk 0:02:33.9]}
10. Qe3 {[%clk 0:03:02.6]} 10... Qb6 {[%clk 0:02:27.5]} 11. Nf3 {[%clk
0:03:01.8]} 11... c5 {[%clk 0:02:26.2]} 12. O-O {[%clk 0:02:31.8]} 12... cxd4
{[%clk 0:02:24.6]} 13. Qxd4 {[%clk 0:02:32.7]} 13... Qxd4 {[%clk 0:02:23.4]} 14.
Nxd4 {[%clk 0:02:33.6]} 14... Bd7 {[%clk 0:02:19.4]} 15. h3 {[%clk 0:02:30]}
15... Rc8 {[%clk 0:02:17.7]} 16. Be3 {[%clk 0:02:30]} 16... a6 {[%clk
0:02:15.6]} 17. a4 {[%clk 0:02:28]} 17... O-O {[%clk 0:02:10.6]} 18. c3 {[%clk
0:02:28.2]} 18... Rfd8 {[%clk 0:02:05]} 19. Rfd1 {[%clk 0:02:28.5]} 19... Be8
{[%clk 0:02:02.8]} 20. g4 {[%clk 0:02:03.1]} 20... Nd5 {[%clk 0:02:01.5]} 21.
Bxd5 {[%clk 0:01:54.7]} 21... Rxd5 {[%clk 0:02:00]} 22. Nf3 {[%clk 0:01:35.7]}
22... Rxd1+ {[%clk 0:01:55.8]} 23. Rxd1 {[%clk 0:01:36.6]} 23... Bxa4 {[%clk
0:01:55.5]} 24. Ra1 {[%clk 0:01:35.8]} 24... Be8 {[%clk 0:01:54]} 25. Bb6 {[%clk
0:01:31.4]} 25... f6 {[%clk 0:01:52.5]} 26. Rd1 {[%clk 0:01:30.5]} 26... e5
{[%clk 0:01:48.9]} 27. Kf1 {[%clk 0:01:26.8]} 27... Kf7 {[%clk 0:01:46.5]} 28.
Ke1 {[%clk 0:01:26.8]} 28... Bc6 {[%clk 0:01:43.7]} 29. Ke2 {[%clk 0:01:23.6]}
29... Bb5+ {[%clk 0:01:42]} 30. Ke3 {[%clk 0:01:22.3]} 30... Rc6 {[%clk
0:01:40]} 31. Ba7 {[%clk 0:01:15.8]} 31... Rc8 {[%clk 0:01:11.9]} 32. Bb6 {[%clk
0:01:12.3]} 32... Ke6 {[%clk 0:01:08.1]} 33. Nh4 {[%clk 0:01:05.1]} 33... g6
{[%clk 0:01:06.2]} 34. Ng2 {[%clk 0:01:05.2]} 34... Bc6 {[%clk 0:01:00.2]} 35.
Ne1 {[%clk 0:01:04.6]} 35... f5 {[%clk 0:00:56.9]} 36. f4 {[%clk 0:01:00.2]}
36... exf4+ {[%clk 0:00:50.3]} 37. Kxf4 {[%clk 0:01:01.1]} 37... g5+ {[%clk
0:00:47.6]} 38. Ke3 {[%clk 0:01:01.5]} 38... f4+ {[%clk 0:00:46.4]} 39. Kf2
{[%clk 0:01:02.1]} 39... Ba4 {[%clk 0:00:38.2]} 40. Rd4 {[%clk 0:01:00.5]} 40...
Bb5 {[%clk 0:00:35.9]} 41. Re4+ {[%clk 0:00:59.1]} 41... Kf7 {[%clk 0:00:34.9]}
42. Nf3 {[%clk 0:00:53.1]} 42... h6 {[%clk 0:00:30.1]} 43. Re5 {[%clk
0:00:43.6]} 43... Rc6 {[%clk 0:00:27.3]} 44. Bd4 {[%clk 0:00:41.7]} 44... Bf6
{[%clk 0:00:19.4]} 45. Rf5 {[%clk 0:00:35.4]} 45... Kg7 {[%clk 0:00:19]} 46. h4
{[%clk 0:00:33.6]} 46... Bxd4+ {[%clk 0:00:18]} 47. Nxd4 {[%clk 0:00:33.8]}
47... Rd6 {[%clk 0:00:14.8]} 48. hxg5 {[%clk 0:00:33.9]} 48... hxg5 {[%clk
0:00:13.3]} 49. Rxg5+ {[%clk 0:00:34.4]} 49... Kh6 {[%clk 0:00:13.7]} 50. Rh5+
{[%clk 0:00:34.5]} 50... Kg6 {[%clk 0:00:13.7]} 51. Nxb5 {[%clk 0:00:30]} 51...
axb5 {[%clk 0:00:14.6]} 52. Rxb5 {[%clk 0:00:30.1]} 52... b6 {[%clk 0:00:15.5]}
53. Kf3 {[%clk 0:00:30.3]} 53... Rf6 {[%clk 0:00:13.8]} 54. Rb4 {[%clk
0:00:30.2]} 54... Kg5 {[%clk 0:00:13.6]} 55. Rb5+ {[%clk 0:00:30.1]} 55... Kg6
{[%clk 0:00:13.8]} 56. b3 {[%clk 0:00:29.7]} 56... Rc6 {[%clk 0:00:13]} 57. c4
{[%clk 0:00:30.3]} 57... Rf6 {[%clk 0:00:12.7]} 58. Re5 {[%clk 0:00:28.2]} 58...
Rd6 {[%clk 0:00:11.4]} 59. Kxf4 {[%clk 0:00:27.9]} 59... Rd3 {[%clk 0:00:11.6]}
60. Re3 {[%clk 0:00:28.6]} 60... Rd4+ {[%clk 0:00:11.5]} 61. Kf3 {[%clk
0:00:27.8]} 61... Rd6 {[%clk 0:00:10.6]} 62. Rc3 {[%clk 0:00:25.3]} 62... Kg5
{[%clk 0:00:10.7]} 63. Re3 {[%clk 0:00:22.3]} 63... Rf6+ {[%clk 0:00:10.4]} 64.
Kg3 {[%clk 0:00:22.4]} 64... Rd6 {[%clk 0:00:10.3]} 65. Re5+ {[%clk 0:00:21.7]}
65... Kf6 {[%clk 0:00:11]} 66. Rb5 {[%clk 0:00:22.3]} 66... Kg6 {[%clk
0:00:10.2]} 67. g5 {[%clk 0:00:20]} 67... Re6 {[%clk 0:00:09.3]} 68. Kf4 {[%clk
0:00:20.4]} 68... Rd6 {[%clk 0:00:09]} 69. Ke4 {[%clk 0:00:19.4]} 69... Re6+
{[%clk 0:00:09]} 70. Kd4 {[%clk 0:00:19.7]} 70... Rd6+ {[%clk 0:00:08.8]} 71.
Kc3 {[%clk 0:00:19.1]} 71... Rc6 {[%clk 0:00:08.9]} 72. Kb4 {[%clk 0:00:19.4]}
72... Re6 {[%clk 0:00:08.6]} 73. Rd5 {[%clk 0:00:19.9]} 73... Rc6 {[%clk
0:00:06.4]} 74. Kb5 {[%clk 0:00:20.3]} 74... Re6 {[%clk 0:00:06.2]} 75. b4
{[%clk 0:00:20.9]} 75... Kh5 {[%clk 0:00:05.4]} 76. Rf5 {[%clk 0:00:19]} 76...
Kg6 {[%clk 0:00:04.8]} 77. Rf6+ {[%clk 0:00:19.7]} 77... Rxf6 {[%clk 0:00:05.4]}
78. gxf6 {[%clk 0:00:20.6]} 78... Kxf6 {[%clk 0:00:06.2]} 79. Kxb6 {[%clk
0:00:21.5]} 1-0

[Event "Early-Titled-Tuesday-Blitz-April-23-2024"]
[Site "Chess.com"]
[Date "2024.04.23"]
[Round "5"]
[White "Rodalquilar"]
[Black "Prizant_academy"]
[Result "0-1"]
[WhiteElo "2729"]
[BlackElo "2938"]
[TimeControl "180+1"]
[EndTime "8:59:03 PDT"]
[Termination "Prizant_academy won on time"]

1. d4 {[%clk 0:03:00.9]} 1... d5 {[%clk 0:02:59.2]} 2. Nf3 {[%clk 0:03:01.2]}
2... Nf6 {[%clk 0:02:59.3]} 3. Bf4 {[%clk 0:03:01.3]} 3... c5 {[%clk 0:02:55.6]}
4. e3 {[%clk 0:03:01.5]} 4... Nc6 {[%clk 0:02:54.2]} 5. c3 {[%clk 0:03:01.9]}
5... Qb6 {[%clk 0:02:53.9]} 6. Qc2 {[%clk 0:03:01.6]} 6... g6 {[%clk 0:02:53.1]}
7. h3 {[%clk 0:03:01.2]} 7... Bg7 {[%clk 0:02:45.2]} 8. Nbd2 {[%clk 0:03:00.9]}
8... O-O {[%clk 0:02:44.4]} 9. Be2 {[%clk 0:03:01.1]} 9... Bf5 {[%clk
0:02:33.2]} 10. dxc5 {[%clk 0:03:00.9]} 10... Qxc5 {[%clk 0:02:33.3]} 11. Qb3
{[%clk 0:03:01.2]} 11... Na5 {[%clk 0:02:17.9]} 12. Qd1 {[%clk 0:02:57.9]} 12...
Qb6 {[%clk 0:02:11.3]} 13. Qc1 {[%clk 0:02:16.6]} 13... Rac8 {[%clk 0:02:08.4]}
14. O-O {[%clk 0:02:16.4]} 14... Nd7 {[%clk 0:01:53.2]} 15. Nh4 {[%clk 0:01:36]}
15... Be4 {[%clk 0:01:42]} 16. Bh2 {[%clk 0:00:35.9]} 16... Nc6 {[%clk
0:01:29.4]} 17. Rd1 {[%clk 0:00:33.4]} 17... Nc5 {[%clk 0:01:24.9]} 18. Nhf3
{[%clk 0:00:21.2]} 18... Bf5 {[%clk 0:01:16.3]} 19. Nh4 {[%clk 0:00:15.4]} 19...
Nd3 {[%clk 0:00:54.8]} 20. Bxd3 {[%clk 0:00:15.7]} 20... Bxd3 {[%clk 0:00:55.7]}
21. Nhf3 {[%clk 0:00:16.6]} 21... Rfd8 {[%clk 0:00:52.9]} 22. Nb3 {[%clk
0:00:15.4]} 22... Be2 {[%clk 0:00:52.6]} 23. Re1 {[%clk 0:00:14.3]} 23... Bxf3
{[%clk 0:00:51.1]} 24. gxf3 {[%clk 0:00:15.2]} 24... e6 {[%clk 0:00:29.1]} 25.
Qb1 {[%clk 0:00:15.2]} 25... Qa6 {[%clk 0:00:26.5]} 26. Nd4 {[%clk 0:00:14.4]}
26... Na5 {[%clk 0:00:20.8]} 27. Kg2 {[%clk 0:00:13.9]} 27... Nc4 {[%clk
0:00:21.3]} 28. a3 {[%clk 0:00:10.6]} 28... Qb6 {[%clk 0:00:20.9]} 29. Ra2
{[%clk 0:00:06]} 29... a5 {[%clk 0:00:20.9]} 30. Ne2 {[%clk 0:00:05]} 30... Qb3
{[%clk 0:00:18.6]} 31. Nc1 {[%clk 0:00:04.8]} 31... Qb6 {[%clk 0:00:17.8]} 32.
Ne2 {[%clk 0:00:04.7]} 32... e5 {[%clk 0:00:17.3]} 33. Rd1 {[%clk 0:00:05]}
33... Qe6 {[%clk 0:00:16.6]} 34. b3 {[%clk 0:00:03.9]} 34... Nb6 {[%clk
0:00:16.8]} 35. Rad2 {[%clk 0:00:04.2]} 35... Bf6 {[%clk 0:00:16.1]} 36. c4
{[%clk 0:00:04.3]} 36... dxc4 {[%clk 0:00:15.5]} 37. Rxd8+ {[%clk 0:00:04.9]}
37... Rxd8 {[%clk 0:00:14.7]} 38. Rxd8+ {[%clk 0:00:04.4]} 38... Bxd8 {[%clk
0:00:15.6]} 39. bxc4 {[%clk 0:00:05.3]} 39... f6 {[%clk 0:00:12.5]} 40. c5
{[%clk 0:00:05.5]} 40... Qc4 {[%clk 0:00:06.2]} 41. cxb6 {[%clk 0:00:03.7]}
41... Qxe2 {[%clk 0:00:06.7]} 42. Qb3+ {[%clk 0:00:03.2]} 42... Kf8 {[%clk
0:00:04.9]} 43. Qe6 {[%clk 0:00:02.1]} 43... Qa6 {[%clk 0:00:02.9]} 44. Qd7
{[%clk 0:00:02.1]} 44... Qxb6 {[%clk 0:00:02.7]} 45. Qxh7 {[%clk 0:00:02.2]}
45... g5 {[%clk 0:00:02.9]} 46. Qh8+ {[%clk 0:00:02.5]} 46... Ke7 {[%clk
0:00:03.5]} 47. Qg7+ {[%clk 0:00:03.1]} 47... Ke6 {[%clk 0:00:03.9]} 48. h4
{[%clk 0:00:03.9]} 48... gxh4 {[%clk 0:00:03.9]} 49. Qg4+ {[%clk 0:00:04.8]}
49... Kd6 {[%clk 0:00:03.4]} 50. Qxh4 {[%clk 0:00:05.2]} 50... Qc6 {[%clk
0:00:04]} 51. Qh8 {[%clk 0:00:05]} 51... Be7 {[%clk 0:00:04.2]} 52. Bg3 {[%clk
0:00:05.1]} 52... b5 {[%clk 0:00:03.7]} 53. Qb8+ {[%clk 0:00:04.8]} 53... Kd5
{[%clk 0:00:03.5]} 54. Qa7 {[%clk 0:00:04.7]} 54... Bc5 {[%clk 0:00:02]} 55.
Qxa5 {[%clk 0:00:04.9]} 55... Kc4 {[%clk 0:00:02.7]} 56. Qd2 {[%clk 0:00:04.2]}
56... Bxa3 {[%clk 0:00:02.3]} 57. Qc2+ {[%clk 0:00:04.6]} 57... Kd5 {[%clk
0:00:02.7]} 58. Qe4+ {[%clk 0:00:05]} 58... Kc5 {[%clk 0:00:02.1]} 59. Qf5
{[%clk 0:00:05]} 59... Kb6 {[%clk 0:00:02.1]} 60. Kf1 {[%clk 0:00:04.1]} 60...
b4 {[%clk 0:00:02.7]} 61. f4 {[%clk 0:00:04.7]} 61... b3 {[%clk 0:00:02.5]} 62.
fxe5 {[%clk 0:00:03]} 62... b2 {[%clk 0:00:03]} 0-1

[Event "Early-Titled-Tuesday-Blitz-April-23-2024"]
[Site "Chess.com"]
[Date "2024.04.23"]
[Round "5"]
[White "mapleaff"]
[Black "MaxLeto"]
[Result "0-1"]
[WhiteElo "2254"]
[BlackElo "2436"]
[TimeControl "180+1"]
[EndTime "8:59:05 PDT"]
[Termination "MaxLeto won by resignation"]

1. d4 {[%clk 0:03:00.9]} 1... h5 {[%clk 0:02:54.9]} 2. c4 {[%clk 0:02:56.9]}
2... h4 {[%clk 0:02:55.8]} 3. h3 {[%clk 0:02:54.4]} 3... d6 {[%clk 0:02:53.8]}
4. Nc3 {[%clk 0:02:54.1]} 4... e5 {[%clk 0:02:53.4]} 5. dxe5 {[%clk 0:02:51.9]}
5... dxe5 {[%clk 0:02:54.3]} 6. Qxd8+ {[%clk 0:02:51.8]} 6... Kxd8 {[%clk
0:02:55.2]} 7. Nf3 {[%clk 0:02:51.8]} 7... f6 {[%clk 0:02:54.9]} 8. e4 {[%clk
0:02:45.5]} 8... c6 {[%clk 0:02:54.4]} 9. Be3 {[%clk 0:02:44.7]} 9... Be6 {[%clk
0:02:54.7]} 10. O-O-O+ {[%clk 0:02:43.2]} 10... Kc7 {[%clk 0:02:52.6]} 11. Be2
{[%clk 0:02:39.4]} 11... Nd7 {[%clk 0:02:52]} 12. b3 {[%clk 0:02:33.7]} 12...
Ba3+ {[%clk 0:02:48.1]} 13. Kc2 {[%clk 0:02:33.2]} 13... g5 {[%clk 0:02:49]} 14.
Nh2 {[%clk 0:02:22.5]} 14... Nh6 {[%clk 0:02:47.8]} 15. Ng4 {[%clk 0:02:18.5]}
15... Nf7 {[%clk 0:02:35.3]} 16. f3 {[%clk 0:01:52.9]} 16... Rhd8 {[%clk
0:02:26.8]} 17. Bf2 {[%clk 0:01:45.9]} 17... a5 {[%clk 0:02:19.9]} 18. Ne3
{[%clk 0:01:42.1]} 18... Nf8 {[%clk 0:02:04.7]} 19. Rxd8 {[%clk 0:01:25.2]}
19... Rxd8 {[%clk 0:02:03.7]} 20. Rd1 {[%clk 0:01:25.7]} 20... Ng6 {[%clk
0:01:57]} 21. Rxd8 {[%clk 0:01:22.4]} 21... Nxd8 {[%clk 0:01:57.9]} 22. Ng4
{[%clk 0:01:10.8]} 22... Bxg4 {[%clk 0:01:39.2]} 23. hxg4 {[%clk 0:01:11.7]}
23... Ne6 {[%clk 0:00:53.4]} 24. Bf1 {[%clk 0:01:03.5]} 24... Ngf4 {[%clk
0:00:47.4]} 25. Ne2 {[%clk 0:00:49.7]} 25... Nxe2 {[%clk 0:00:40.3]} 26. Bxe2
{[%clk 0:00:49.6]} 26... Bc5 {[%clk 0:00:41.2]} 27. Be1 {[%clk 0:00:40]} 27...
b6 {[%clk 0:00:37.6]} 28. Bf1 {[%clk 0:00:36]} 28... Be3 {[%clk 0:00:33.1]} 29.
g3 {[%clk 0:00:28.3]} 29... hxg3 {[%clk 0:00:21.5]} 30. Bxg3 {[%clk 0:00:29.2]}
30... Nd4+ {[%clk 0:00:20.6]} 31. Kd3 {[%clk 0:00:24.1]} 31... Bf4 {[%clk
0:00:20.7]} 32. Bxf4 {[%clk 0:00:16.2]} 32... gxf4 {[%clk 0:00:21.6]} 33. Be2
{[%clk 0:00:15.3]} 33... Kd6 {[%clk 0:00:21.5]} 34. Bd1 {[%clk 0:00:13.8]} 34...
Ke7 {[%clk 0:00:17.7]} 35. a3 {[%clk 0:00:13.1]} 35... Kf7 {[%clk 0:00:16.7]}
36. b4 {[%clk 0:00:11.7]} 36... axb4 {[%clk 0:00:16.9]} 37. axb4 {[%clk
0:00:12.6]} 37... Kg6 {[%clk 0:00:17.2]} 38. Kd2 {[%clk 0:00:06.2]} 38... Kg5
{[%clk 0:00:16.7]} 39. Ke1 {[%clk 0:00:06.7]} 39... Kh4 {[%clk 0:00:16.2]} 40.
Kf2 {[%clk 0:00:07.3]} 40... Kh3 {[%clk 0:00:15.5]} 41. Ba4 {[%clk 0:00:04.6]}
41... c5 {[%clk 0:00:13.2]} 42. bxc5 {[%clk 0:00:04.4]} 42... bxc5 {[%clk
0:00:14.1]} 43. Bd7 {[%clk 0:00:04.5]} 43... Kh2 {[%clk 0:00:07.8]} 44. Bc8
{[%clk 0:00:04.5]} 44... Nc2 {[%clk 0:00:06.6]} 45. Be6 {[%clk 0:00:04.6]} 45...
Ne3 {[%clk 0:00:06.3]} 46. Bf7 {[%clk 0:00:04.6]} 46... Nd1+ {[%clk 0:00:06.2]}
47. Ke2 {[%clk 0:00:04.2]} 47... Nc3+ {[%clk 0:00:04.7]} 48. Kf2 {[%clk
0:00:04.6]} 48... Na4 {[%clk 0:00:04.9]} 49. Be6 {[%clk 0:00:04.2]} 49... Nb2
{[%clk 0:00:05.3]} 50. Bf7 {[%clk 0:00:04.6]} 50... Nd1+ {[%clk 0:00:04.3]} 51.
Ke2 {[%clk 0:00:05]} 51... Ne3 {[%clk 0:00:04.3]} 52. Kf2 {[%clk 0:00:05.6]}
52... Kh3 {[%clk 0:00:03.2]} 53. Be6 {[%clk 0:00:05.3]} 53... Kh4 {[%clk
0:00:03]} 54. Bf7 {[%clk 0:00:05.3]} 54... Nc2 {[%clk 0:00:03]} 55. Be6 {[%clk
0:00:04.7]} 55... Nd4 {[%clk 0:00:03.5]} 56. Bf7 {[%clk 0:00:04.9]} 56... Kg5
{[%clk 0:00:03.8]} 57. Bd5 {[%clk 0:00:03.8]} 57... Kh6 {[%clk 0:00:04.2]} 58.
Kg2 {[%clk 0:00:03.7]} 58... Kg7 {[%clk 0:00:04.7]} 59. Bb7 {[%clk 0:00:03.1]}
59... Kf8 {[%clk 0:00:04.9]} 60. Bd5 {[%clk 0:00:03.7]} 60... Ke7 {[%clk
0:00:04.8]} 61. Bg8 {[%clk 0:00:02.3]} 61... Kd6 {[%clk 0:00:04.8]} 62. Bf7
{[%clk 0:00:02.4]} 62... Kc7 {[%clk 0:00:05.1]} 63. Bg8 {[%clk 0:00:02.6]} 63...
Kb6 {[%clk 0:00:05.7]} 64. Kh3 {[%clk 0:00:02]} 64... Nxf3 {[%clk 0:00:05]} 65.
g5 {[%clk 0:00:01.8]} 65... Nxg5+ {[%clk 0:00:04.2]} 66. Kg4 {[%clk 0:00:02.4]}
66... Nxe4 {[%clk 0:00:04.9]} 67. Kf5 {[%clk 0:00:02.9]} 67... Nd6+ {[%clk
0:00:04.8]} 68. Kxf6 {[%clk 0:00:03.5]} 68... f3 {[%clk 0:00:05.3]} 69. Kxe5
{[%clk 0:00:02.9]} 69... f2 {[%clk 0:00:05.4]} 0-1